bitfinex/quotes_ETHUSD_20240916
["timestamp","ask_amount","ask_price","bid_price","bid_amount"]
[1726446780798,4.44881403,2304.0,2303.3,4.34146]
[1726446781051,5.68919418,2304.0,2303.5,4.34121]
[1726446781198,4.34057,2303.9,2303.2,4.34162]
[1726446781540,5.01817124,2303.8,2303.2,4.34162]
[1726446781723,5.01817124,2303.8,2302.8,0.0414925]
[1726446781724,6.82301111,2303.7,2303.0,4.34205]
[1726446781923,2.3735,2304.0,2303.6,4.34096]
[1726446782249,0.45322404,2304.2,2303.7,4.34068]
[1726446782905,4.33841,2305.0,2303.7,4.34068]
[1726446782906,2.4261,2304.6,2303.8,2.57721117]
[1726446783109,2.4261,2304.6,2304.3,4.33959]
[1726446783315,0.45317831,2304.8,2303.9,0.77859469]
[1726446783633,2.4261,2305.3,2305.0,4.33837]
[1726446783810,2.87919507,2305.3,2305.0,4.33837]
[1726446784156,2.87919507,2305.3,2304.9,4.33842]
[1726446784443,2.53455357,2305.6,2305.0,4.33826]
[1726446784643,2.53455357,2305.6,2305.1,4.33816]
[1726446784644,2.98759144,2305.6,2305.1,4.33816]
[1726446784806,0.25345536,2305.5,2305.1,4.33816]
[1726446785255,0.25345536,2305.5,2305.0,4.33826]
[1726446785811,0.25345536,2305.5,2304.9,4.33853]
[1726446785812,0.04541787,2305.4,2304.9,4.33853]
[1726446786039,4.33869,2304.9,2304.2,4.33989]
[1726446786254,6.76508,2304.7,2304.1,4.33997]
[1726446786453,0.10848466,2304.6,2303.9,4.34035]
[1726446786665,0.10848466,2304.6,2303.7,6.70652]
[1726446786666,4.33981,2304.3,2303.7,4.34072]
[1726446786882,0.10850824,2304.2,2303.7,4.34072]
[1726446787157,0.10850824,2304.2,2303.5,6.7069]
[1726446787158,0.04541787,2304.1,2304.0,4.34027]
[1726446787337,0.04541787,2304.1,2304.0,8.76732711]
[1726446787523,2.2697,2305.0,2304.6,4.33914]
[1726446787730,2.2697,2305.0,2304.6,4.33903]
[1726446787913,2.2697,2305.0,2304.2,4.33984]
[1726446787914,4.38486567,2304.9,2304.2,4.33984]
[1726446788114,0.10848464,2304.8,2304.2,4.33984]
[1726446788320,4.38486567,2304.9,2303.8,3.0]
[1726446788321,4.33944,2304.5,2303.8,4.34048]
[1726446788656,4.33944,2304.5,2303.6,5.3654]
[1726446788657,6.70749,2304.6,2304.0,8.68043]
[1726446788862,2.3682,2304.6,2304.2,4.33976]
[1726446789028,2.3682,2304.6,2303.7,4.87733]
[1726446789029,0.04617567,2304.5,2304.1,4.34007]
[1726446789357,0.04617567,2304.5,2304.0,4.34014]
[1726446789566,0.04617567,2304.5,2304.0,8.68028]
[1726446789789,0.04617567,2304.5,2304.1,4.34007]
[1726446789918,0.04617567,2304.5,2304.0,8.68031]
[1726446790121,0.04617567,2304.5,2304.1,4.34006]
[1726446790759,0.04617567,2304.5,2304.0,4.34014]
[1726446791265,0.04617567,2304.5,2304.1,4.34007]
[1726446791759,0.04617567,2304.5,2304.1,4.34008]
[1726446791962,0.04617567,2304.5,2304.2,4.33979]
[1726446792174,0.04617567,2304.5,2304.3,4.33956]
[1726446792722,0.10848548,2304.8,2304.3,4.33956]
[1726446792919,0.04617567,2304.4,2304.3,4.33956]
[1726446793140,0.80186548,2304.8,2304.3,4.33956]
[1726446793324,0.04617567,2304.4,2304.3,4.33956]
[1726446793539,6.9338,2304.9,2304.5,4.33928]
[1726446793540,2.3682,2304.9,2304.5,4.33928]
[1726446793724,2.3682,2304.9,2304.6,4.33903]
[1726446793931,2.3682,2304.9,2304.1,4.34003]
[1726446793932,2.3682,2304.2,2303.3,0.0147741]
[1726446794231,4.34042,2304.0,2303.3,4.3562541]
[1726446794539,4.34042,2304.0,2303.3,0.0147741]
[1726446794540,4.34118,2303.6,2303.3,0.0147741]
[1726446794740,0.10854539,2303.5,2303.3,0.0147741]
[1726446795130,2.316,2303.4,2303.3,0.0147741]
[1726446795829,4.44984956,2303.5,2303.3,0.0147741]
[1726446796166,0.77871452,2303.5,2303.3,0.0147741]
[1726446796365,2.2518,2303.7,2303.3,0.0147741]
[1726446796366,6.7011882,2303.7,2303.3,0.0147741]
[1726446796665,2.2518,2303.7,2303.3,0.0147741]
[1726446796874,2.36032987,2303.7,2303.3,0.0147741]
[1726446797166,6.70133987,2303.7,2303.3,0.0147741]
[1726446797321,0.67013399,2303.6,2303.3,0.0147741]
[1726446797525,6.70133987,2303.7,2303.3,0.0147741]
[1726446798270,2.36032987,2303.7,2303.3,0.0147741]
[1726446798568,2.2518,2303.7,2303.3,0.0147741]
[1726446798723,0.88871776,2304.3,2303.3,0.0147741]
[1726446798724,6.59192,2304.1,2303.3,0.0147741]
[1726446799076,7.77396478,2304.1,2303.3,4.44303303]
[1726446799248,7.77396478,2304.1,2303.4,4.34125]
[1726446799647,3.43384478,2304.1,2303.6,4.34099]
[1726446799964,2.70494974,2304.1,2303.6,4.34099]
[1726446800122,2.70494974,2304.1,2303.5,0.08681238]
[1726446800123,2.70494974,2304.1,2303.3,3.0147741]
[1726446800327,2.3296,2304.4,2303.8,4.34055]
[1726446800583,0.45311884,2304.4,2303.9,2.4991]
[1726446800872,0.10848561,2304.6,2304.0,4.59015]
[1726446801176,6.71826,2304.7,2303.9,6.83947]
[1726446801479,2.3793,2304.7,2304.3,4.33964]
[1726446801689,7.82310675,2304.8,2304.1,4.33996]
[1726446801690,0.45310675,2304.8,2304.1,4.33996]
[1726446802002,4.79188675,2304.8,2304.1,4.33996]
[1726446802278,4.44760114,2304.7,2303.9,6.83949]
[1726446802429,4.44760114,2304.7,2303.9,11.1798]
[1726446802430,4.33917,2304.6,2303.9,11.1798]
[1726446802778,0.45310675,2304.8,2304.1,4.34006]
[1726446802983,0.45310675,2304.8,2304.0,0.08679322]
[1726446802984,2.3793,2305.0,2304.4,4.33944]
[1726446803269,4.33892,2304.8,2304.2,4.33975]
[1726446803427,0.34639898,2304.9,2304.2,8.6795]
[1726446803629,0.34639898,2304.9,2304.3,4.33966]
[1726446803869,0.34639898,2304.9,2304.2,4.33975]
[1726446803870,4.33891,2304.8,2304.2,4.33975]
[1726446804076,5.0453709,2304.8,2304.0,7.59872932]
[1726446804280,5.0453709,2304.8,2304.1,4.33994]
[1726446804434,2.51248124,2304.7,2303.6,12.28739717]
[1726446804665,4.33921,2304.6,2303.8,4.34047]
[1726446804866,4.33921,2304.6,2303.9,0.08679343]
[1726446805077,4.33921,2304.6,2303.8,4.42726341]
[1726446805385,4.34044,2304.0,2303.3,6.6470841]
[1726446805583,2.3325,2304.1,2303.3,6.6470841]
[1726446805812,4.44879694,2304.0,2303.3,6.6470841]
[1726446806010,4.44879694,2304.0,2303.4,4.34135]
[1726446806211,4.44879694,2304.0,2303.3,2.3056741]
[1726446806515,4.34028,2304.0,2303.4,4.34128]
[1726446806709,2.3325,2304.1,2303.3,6.6471241]
[1726446806710,2.44102168,2304.1,2303.3,6.6471241]
[1726446806915,2.44102168,2304.1,2303.5,4.34121]
[1726446807481,2.44102168,2304.1,2303.5,4.34109]
[1726446807978,0.88871776,2304.5,2303.5,4.34109]
[1726446807979,2.4487,2304.4,2304.0,4.34027]
[1726446808180,2.4487,2304.4,2303.8,4.34053]
[1726446808430,2.4487,2304.4,2303.8,4.34051]
[1726446808608,2.4487,2304.4,2303.9,4.34043]
[1726446808814,6.89624793,2304.7,2304.1,4.34008]
[1726446808996,4.33916,2304.6,2303.9,8.68075]
[1726446809182,0.7142388,2304.5,2303.9,4.34034]
[1726446809510,0.7142388,2304.5,2303.9,4.4271324]
[1726446809713,2.6947376,2304.7,2304.1,4.33993]
[1726446809900,0.23793,2304.9,2304.3,4.33957]
[1726446810097,7.67586776,2305.0,2304.3,4.33957]
[1726446810098,6.78715,2305.0,2304.3,4.33957]
[1726446810296,0.45306753,2305.1,2304.6,4.33901]
[1726446810527,0.45306753,2305.1,2304.7,2.3963]
[1726446810692,4.3613015,2305.4,2304.7,6.73513]
[1726446810895,4.33812,2305.2,2304.5,4.33918]
[1726446811092,0.44465743,2305.1,2304.5,4.33918]
[1726446811295,0.44465743,2305.1,2304.6,4.33903]
[1726446811929,4.61414244,2305.4,2304.6,4.33903]
[1726446811930,0.10846741,2305.3,2304.7,4.33882]
[1726446812168,4.44631741,2305.3,2304.7,4.33882]
[1726446812722,4.44631741,2305.3,2304.4,2.3113]
[1726446812723,4.33841,2305.0,2304.4,6.65068]
[1726446812926,6.71722,2305.2,2304.5,4.33919]
[1726446813127,7.42733088,2305.2,2304.6,4.33908]
[1726446813359,7.42733088,2305.2,2304.6,8.67811]
[1726446813537,7.42733088,2305.2,2304.6,4.33903]
[1726446813738,3.08931088,2305.2,2304.8,4.33874]
[1726446814125,0.02935658,2305.0,2304.8,4.33874]
[1726446814323,0.02935658,2305.0,2304.6,4.33903]
[1726446814324,0.02935658,2305.0,2304.6,4.339]
[1726446814591,0.02935658,2305.0,2304.7,4.33883]
[1726446815524,0.02935658,2305.0,2304.8,4.33876]
[1726446815729,0.02935658,2305.0,2304.9,8.67716]
[1726446815925,0.02935658,2305.0,2304.9,8.76392822]
[1726446816338,0.02935658,2305.0,2304.9,13.10250822]
[1726446816585,0.02935658,2305.0,2304.9,13.76835763]
[1726446816732,0.02935658,2305.0,2304.9,9.42977763]
[1726446817178,0.02935658,2305.0,2304.9,5.09119763]
[1726446817503,0.02935658,2305.0,2304.9,4.33858]
[1726446817645,0.02935658,2305.0,2304.8,4.33874]
[1726446817841,0.02935658,2305.0,2304.6,4.33904]
[1726446818405,0.02935658,2305.0,2304.6,8.67806]
[1726446818696,0.02935658,2305.0,2304.7,4.33891]
[1726446819045,0.02935658,2305.0,2304.9,4.33858]
[1726446819245,0.02935658,2305.0,2304.7,4.33879]
[1726446819446,0.02935658,2305.0,2304.9,4.33858]
[1726446819733,0.02935658,2305.0,2304.9,4.772438]
[1726446819986,0.02935658,2305.0,2304.9,4.33858]
[1726446820348,0.02935658,2305.0,2304.8,4.33869]
[1726446820547,0.02935658,2305.0,2304.8,4.33866]
[1726446821254,0.02935658,2305.0,2304.6,4.33902]
[1726446821493,0.02935658,2305.0,2304.8,4.33874]
[1726446821699,0.02935658,2305.0,2304.9,4.33858]
[1726446821886,0.02935658,2305.0,2304.8,4.33865]
[1726446822086,0.02935658,2305.0,2304.8,8.6773]
[1726446822315,0.02935658,2305.0,2304.8,4.33865]
[1726446822606,0.02935658,2305.0,2304.8,4.33876]
[1726446822963,0.02935658,2305.0,2304.8,4.33867]
[1726446823187,0.02935658,2305.0,2304.6,4.33898]
[1726446823388,0.02935658,2305.0,2304.6,8.678]
[1726446823593,0.02935658,2305.0,2304.7,4.33888]
[1726446824163,0.02935658,2305.0,2304.8,4.33876]
[1726446824404,0.02935658,2305.0,2304.9,4.33858]
[1726446826494,0.02935658,2305.0,2304.9,8.67716]
[1726446826694,0.02935658,2305.0,2304.9,11.14786]
[1726446826902,0.02935658,2305.0,2304.9,18.48644]
[1726446827070,0.02935658,2305.0,2304.9,19.18944931]
[1726446828318,0.02935658,2305.0,2304.9,24.07802931]
[1726446828505,0.0236515,2305.4,2304.9,24.07802931]
[1726446828506,0.0236515,2305.4,2305.3,11.67566]
[1726446828704,0.0236515,2305.4,2305.3,23.92830717]
[1726446828705,0.07006681,2305.4,2305.3,23.92830717]
[1726446828938,0.07006681,2305.4,2305.3,25.46863689]
[1726446829157,0.0236515,2305.4,2305.3,25.46863689]
[1726446829305,0.0236515,2305.4,2305.3,21.13080689]
[1726446833852,0.0236515,2305.4,2305.3,25.46863689]
[1726446834084,0.0236515,2305.4,2305.3,20.76626006]
[1726446834367,0.0236515,2305.4,2305.3,25.10409006]
[1726446834828,0.0236515,2305.4,2305.3,25.65409006]
[1726446834980,7.4084256,2306.1,2306.0,9.54758034]
[1726446835274,0.0384256,2306.1,2306.0,9.54758034]
[1726446835432,0.0384256,2306.1,2306.0,13.88409034]
[1726446835433,0.08428694,2306.1,2306.0,13.88409034]
[1726446835801,0.0384256,2306.1,2306.0,13.88409034]
[1726446836075,0.0384256,2306.1,2306.0,15.42442006]
[1726446836277,0.0384256,2306.1,2306.0,11.08791006]
[1726446836770,0.0384256,2306.1,2306.0,15.42442006]
[1726446836978,0.08444395,2306.1,2306.0,15.42442006]
[1726446837131,0.0384256,2306.1,2306.0,22.76093006]
[1726446837472,0.0384256,2306.1,2306.0,20.79232006]
[1726446837926,0.0384256,2306.1,2305.1,2.3679]
[1726446838134,6.81406,2306.0,2305.3,4.33771]
[1726446838362,6.81406,2306.0,2304.9,2.3679]
[1726446838363,4.33726,2305.6,2304.9,2.3679]
[1726446838560,4.33726,2305.6,2304.9,4.33845]
[1726446838791,0.04584086,2305.5,2304.9,8.67691]
[1726446839074,0.04584086,2305.5,2305.0,5.72715803]
[1726446839571,0.04584086,2305.4,2305.1,4.33813]
[1726446839787,0.04584086,2305.4,2305.1,9.54915034]
[1726446840000,2.4775,2305.7,2305.2,0.854541]
[1726446840153,0.04584086,2305.3,2305.2,0.854541]
[1726446840353,2.4775,2305.7,2305.3,4.33781]
[1726446840587,0.04584086,2305.3,2305.2,4.33801]
[1726446840767,6.81462,2305.7,2305.0,4.33826]
[1726446840991,0.04584086,2305.3,2305.0,1.29239596]
[1726446841160,8.67504,2305.5,2304.8,4.33864]
[1726446841370,8.67504,2305.5,2304.9,4.33852]
[1726446841371,0.04562236,2305.2,2304.9,4.33852]
[1726446841595,4.33745,2305.5,2304.8,4.33864]
[1726446841799,0.04562236,2305.1,2304.8,9.781849]
[1726446842001,6.81467,2305.7,2305.1,4.33814]
[1726446842296,6.81467,2305.7,2305.3,4.3377]
[1726446842297,2.4775,2305.7,2305.3,4.3377]
[1726446842527,2.4775,2305.7,2305.3,8.67541]
[1726446842814,2.4775,2305.7,2304.8,3.393959]
[1726446842815,4.33761,2305.5,2304.8,3.393959]
[1726446843017,4.33761,2305.5,2304.8,5.2894]
[1726446843221,0.35617592,2305.6,2304.5,4.33923]
[1726446843222,2.2525,2305.1,2304.5,4.33923]
[1726446843523,2.2525,2305.1,2304.5,5.33171896]
[1726446843733,2.2525,2305.1,2304.5,5.33169896]
[1726446844028,2.2525,2305.4,2304.7,4.33881]
[1726446844522,4.3381,2305.2,2304.5,5.33165896]
[1726446844675,2.2525,2305.4,2304.7,4.33879]
[1726446844880,4.33795,2305.3,2304.6,4.33914]
[1726446845113,5.00791975,2305.2,2304.6,4.33914]
[1726446845419,4.90791975,2305.2,2304.5,4.33919]
[1726446845578,0.56988975,2305.2,2304.6,4.33914]
[1726446845774,0.04360927,2305.1,2304.6,4.42590776]
[1726446846017,0.04360927,2305.1,2304.7,4.42571591]
[1726446846201,2.2525,2305.4,2304.9,4.3385]
[1726446846401,2.2525,2305.4,2305.0,0.08675321]
[1726446846593,2.2525,2305.4,2304.9,4.3385]
[1726446847793,2.2525,2305.4,2304.9,4.33844]
[1726446848023,2.2525,2305.4,2305.0,4.42496701]
[1726446848221,2.2525,2305.4,2305.0,8.67649]
[1726446848519,2.2525,2305.4,2305.1,4.3382]
[1726446848915,2.2525,2305.4,2305.0,8.67649]
[1726446849092,2.2525,2305.4,2305.0,4.33821]
[1726446849485,2.2525,2305.4,2305.0,8.67648]
[1726446849684,2.2525,2305.4,2305.2,4.33799]
[1726446849894,2.3427,2305.8,2305.2,4.33799]
[1726446850220,4.33726,2305.6,2305.0,5.31819567]
[1726446850600,4.33723,2305.7,2305.1,4.33819]
[1726446850920,0.10843876,2305.6,2305.0,9.65639567]
[1726446851089,8.78285878,2305.7,2305.0,5.31812567]
[1726446851290,4.44562878,2305.7,2305.0,5.31812567]
[1726446851590,4.33756,2305.5,2304.8,7.33863]
[1726446851798,2.3427,2305.6,2305.0,4.33823]
[1726446852423,2.3427,2305.6,2305.1,4.3382]
[1726446854603,2.3427,2305.6,2305.2,4.338]
[1726446855313,2.70806434,2305.9,2305.5,4.33745]
[1726446855510,2.70806434,2305.9,2305.6,4.33715]
[1726446855731,2.2552,2305.9,2305.3,2.3479]
[1726446855885,2.2552,2305.9,2305.4,4.33752]
[1726446856384,2.2552,2305.9,2305.6,4.33725]
[1726446856618,2.2552,2305.9,2305.5,4.33744]
[1726446856931,2.2552,2305.9,2305.5,8.67468]
[1726446857083,2.2552,2305.9,2305.6,4.33714]
[1726446857485,2.2552,2305.9,2305.7,4.33705]
[1726446857789,2.2552,2305.9,2305.4,0.968558]
[1726446857987,2.2552,2305.9,2305.3,4.3377]
[1726446858299,2.2552,2305.9,2305.6,4.33725]
[1726446858506,2.2552,2305.9,2305.5,4.3374]
[1726446858706,2.2552,2305.9,2305.5,8.67474]
[1726446858932,2.2552,2305.9,2305.6,4.33723]
[1726446859232,2.2552,2305.9,2305.3,4.6377]
[1726446859233,6.59191,2305.9,2305.3,4.6377]
[1726446860090,6.59191,2305.9,2305.0,4.33826]
[1726446860091,2.4964,2305.6,2305.0,4.33826]
[1726446860403,2.4964,2305.6,2305.2,8.6759]
[1726446860733,2.4964,2305.6,2305.3,0.86759]
[1726446860936,0.0439032,2305.5,2305.2,4.3379]
[1726446861529,0.0439032,2305.5,2305.3,4.3378]
[1726446862311,0.0439032,2305.5,2304.8,4.33862]
[1726446862312,2.2705,2305.4,2304.8,4.33862]
[1726446862618,2.2705,2305.4,2304.8,4.33873]
[1726446862619,4.44638904,2305.3,2304.8,4.33873]
[1726446862823,0.10845999,2305.2,2304.8,4.33873]
[1726446863005,0.10845999,2305.2,2304.8,4.33866]
[1726446863416,0.0439032,2305.1,2304.8,4.33866]
[1726446863736,0.0439032,2305.1,2304.8,8.67733]
[1726446863936,0.0439032,2305.1,2304.8,4.33866]
[1726446864243,0.0439032,2305.1,2304.8,8.67732]
[1726446864427,0.0439032,2305.1,2304.7,4.33892]
[1726446864596,0.0439032,2305.1,2304.8,4.33874]
[1726446865480,0.0439032,2305.1,2304.9,4.33848]
[1726446865770,2.37895966,2305.4,2304.9,4.33848]
[1726446866071,0.04381433,2305.3,2304.9,4.33848]
[1726446866468,4.38164433,2305.3,2304.8,8.6774]
[1726446866670,5.05770473,2305.3,2304.8,4.33866]
[1726446866978,2.468,2305.0,2304.5,8.67841]
[1726446867182,2.57647171,2305.0,2304.6,4.33913]
[1726446867333,2.468,2305.0,2304.7,4.33881]
[1726446867533,0.04381433,2304.9,2304.7,4.33881]
[1726446867764,0.04381433,2304.9,2304.8,4.33877]
[1726446868455,0.04381433,2304.9,2304.7,4.33894]
[1726446868683,0.04381433,2304.9,2304.6,4.33912]
[1726446868852,0.04381433,2304.9,2304.8,4.33877]
[1726446870976,0.04381433,2304.9,2304.8,9.545312]
[1726446871305,2.468,2305.4,2305.0,4.33828]
[1726446871455,2.468,2305.4,2305.1,4.33818]
[1726446871802,0.04340416,2305.3,2305.1,4.33818]
[1726446872556,0.04340416,2305.3,2305.1,0.60772603]
[1726446872956,0.04340416,2305.3,2305.2,4.33801]
[1726446873157,0.04340416,2305.3,2305.2,8.67602]
[1726446873373,7.37,2305.9,2305.7,4.33694]
[1726446873577,2.4992,2306.0,2305.7,4.33694]
[1726446873578,0.04213895,2305.8,2305.7,4.33694]
[1726446873867,0.0384256,2306.1,2306.0,4.33651]
[1726446874893,0.0384256,2306.1,2306.0,8.67302]
[1726446875055,0.0384256,2306.1,2306.0,11.67302]
[1726446875567,2.41792444,2306.1,2305.7,4.33697]
[1726446875783,2.65971688,2306.1,2305.7,4.33697]
[1726446876108,2.65971688,2306.1,2305.6,4.33725]
[1726446876309,2.76814019,2306.1,2305.5,4.33733]
[1726446876610,0.69958669,2306.0,2305.6,4.33715]
[1726446876909,0.74089505,2306.0,2305.7,4.33703]
[1726446877068,0.74089505,2306.0,2305.5,4.33731]
[1726446877069,0.04130836,2306.0,2305.5,4.33731]
[1726446877274,0.04130836,2306.0,2305.6,4.33714]
[1726446877767,0.04130836,2306.0,2305.6,4.33723]
[1726446878011,0.04130836,2306.0,2305.7,4.33707]
[1726446878621,0.04130836,2306.0,2305.9,4.3367]
[1726446879408,0.04130836,2306.0,2305.8,4.33686]
[1726446879719,0.04130836,2306.0,2305.8,8.67364]
[1726446880438,0.04130836,2306.0,2305.9,4.3367]
[1726446880974,0.04130836,2306.0,2305.6,4.33709]
[1726446881330,0.04130836,2306.0,2305.9,4.3367]
[1726446881685,0.04130836,2306.0,2305.8,4.33678]
[1726446882018,2.4415,2305.9,2304.9,0.89865319]
[1726446882217,2.4415,2305.5,2305.0,4.33827]
[1726446882529,2.4415,2305.5,2304.9,0.08675686]
[1726446882730,0.04108931,2305.4,2305.1,4.33807]
[1726446884708,0.04108931,2305.4,2305.0,0.08675013]
[1726446885104,2.4803,2305.8,2305.0,0.08675013]
[1726446885105,2.4803,2305.8,2305.3,4.33768]
[1726446885739,4.44569758,2305.7,2305.1,4.33807]
[1726446886144,4.33727,2305.6,2305.0,4.33824]
[1726446886311,4.33727,2305.6,2305.1,4.33808]
[1726446886850,4.44591927,2305.5,2305.0,4.33824]
[1726446887050,4.44591927,2305.5,2304.8,4.33876]
[1726446887051,4.33793,2305.3,2304.8,4.33876]
[1726446887341,2.58876008,2305.2,2304.8,4.33876]
[1726446887698,2.58876008,2305.2,2304.8,8.67752]
[1726446887892,2.4803,2305.2,2304.8,4.33876]
[1726446889011,2.4803,2305.2,2304.8,8.67743]
[1726446889234,4.33758,2305.5,2305.0,4.33836]
[1726446889235,6.81784,2305.5,2305.0,4.33836]
[1726446889404,2.4803,2305.5,2305.1,4.3382]
[1726446889900,2.58874442,2305.4,2304.6,4.33911]
[1726446890102,2.58874442,2305.4,2304.2,9.46788552]
[1726446890103,6.81927,2304.7,2304.2,4.33979]
[1726446890334,6.92775352,2304.7,2304.2,4.33979]
[1726446890643,0.04071266,2304.6,2304.4,4.33949]
[1726446891346,0.04071266,2304.6,2304.2,4.33979]
[1726446891836,0.04071266,2304.6,2304.3,4.33966]
[1726446892055,0.04071266,2304.6,2304.2,8.67953]
[1726446892723,0.04071266,2304.6,2304.3,4.33969]
[1726446892899,0.04071266,2304.6,2304.2,9.547493]
[1726446893097,0.04071266,2304.6,2304.2,4.33975]
[1726446893540,0.04071266,2304.6,2304.2,8.67954]
[1726446893725,0.04071266,2304.6,2304.2,5.207704]
[1726446893925,0.04071266,2304.6,2304.2,4.33975]
[1726446894642,0.04071266,2304.6,2304.4,4.33951]
[1726446895942,0.04071266,2304.6,2304.5,13.97991874]
[1726446896237,6.79533,2305.2,2304.5,4.33919]
[1726446896455,6.79533,2305.2,2304.7,4.33894]
[1726446896600,2.4572,2305.2,2304.7,8.67788]
[1726446896802,2.4572,2305.2,2304.7,4.33894]
[1726446897339,2.4572,2305.2,2304.7,4.33884]
[1726446897506,6.79525,2305.2,2304.7,4.33884]
[1726446897701,2.4572,2305.2,2304.7,4.33884]
[1726446897901,2.4572,2305.2,2304.7,8.67769]
[1726446898148,2.4572,2305.2,2304.7,4.33884]
[1726446898703,6.90367809,2305.2,2304.5,4.33922]
[1726446898910,6.90367809,2305.2,2304.6,4.33898]
[1726446899104,4.33851,2305.0,2304.5,4.33922]
[1726446899429,2.4169,2305.1,2304.5,4.33932]
[1726446899430,0.433851,2304.9,2304.5,4.33932]
[1726446899633,6.75523,2305.1,2304.6,4.33913]
[1726446900036,0.10846932,2305.0,2304.0,2.4388]
[1726446900203,4.33872,2304.9,2304.3,4.33959]
[1726446900402,2.2768,2304.8,2304.3,4.33957]
[1726446900633,2.2768,2305.0,2304.6,4.33913]
[1726446900807,2.3966,2305.3,2304.9,4.33856]
[1726446901135,2.3966,2305.3,2304.3,2.4767]
[1726446901136,2.3966,2305.3,2304.7,4.33885]
[1726446901451,2.3966,2305.3,2304.7,8.67769]
[1726446901617,2.3966,2305.3,2304.8,4.33876]
[1726446901816,2.3966,2305.3,2304.9,4.33855]
[1726446902212,2.3966,2305.3,2305.0,4.33834]
[1726446902406,2.50504952,2305.3,2304.7,4.33884]
[1726446902606,0.10845859,2305.2,2304.7,4.33884]
[1726446902845,6.7351,2305.0,2304.3,4.33957]
[1726446903161,0.10847975,2304.9,2304.3,4.33957]
[1726446903770,2.3966,2305.0,2304.6,4.33904]
[1726446904255,2.3966,2305.0,2304.6,8.67804]
[1726446904847,2.3966,2305.0,2304.6,8.67806]
[1726446905143,2.3966,2305.0,2304.7,4.33883]
[1726446905306,2.3966,2305.0,2304.8,4.33874]
[1726446906264,2.3966,2304.9,2304.3,0.733957]
[1726446906422,2.3966,2304.9,2304.2,4.33989]
[1726446906423,6.84379163,2304.9,2304.2,4.33989]
[1726446906950,6.84379163,2304.9,2304.3,4.33954]
[1726446907308,6.84379163,2304.9,2304.2,4.33989]
[1726446907309,3.08097916,2304.8,2304.2,4.33989]
[1726446907530,7.61107914,2304.5,2303.3,0.0384256]
[1726446907734,6.73783,2303.5,2303.3,0.0384256]
[1726446907934,4.44995393,2303.4,2303.3,0.0384256]
[1726446908137,6.73783,2303.5,2303.3,0.0384256]
[1726446908138,2.3966,2303.5,2303.3,0.0384256]
[1726446908410,6.73782,2303.5,2303.3,0.0384256]
[1726446908955,5.02603621,2303.4,2303.3,0.0384256]
[1726446909257,5.13458513,2303.4,2303.3,0.0384256]
[1726446911010,9.47598513,2303.4,2303.3,0.0384256]
[1726446911224,5.13458513,2303.4,2303.3,0.0384256]
[1726446912405,16.28908513,2303.4,2303.3,0.0384256]
[1726446912662,16.28908513,2303.4,2302.6,0.0434256]
[1726446912663,22.05356427,2303.4,2302.6,0.0434256]
[1726446912828,11.12764,2302.7,2302.6,0.0434256]
[1726446913157,1.62890851,2303.3,2301.9,0.0384256]
[1726446913158,8.68808,2302.0,2301.9,0.0384256]
[1726446913360,17.450928,2302.0,2301.9,0.0384256]
[1726446913514,16.900928,2302.0,2301.9,0.0384256]
[1726446913860,4.34537,2301.3,2301.2,0.0384256]
[1726446914039,4.34529,2301.4,2301.2,0.0384256]
[1726446914209,4.34537,2301.3,2301.2,0.0384256]
[1726446914411,6.66457,2301.3,2301.2,0.0384256]
[1726446914653,2.3192,2301.3,2301.2,0.0384256]
[1726446915555,4.34487,2301.6,2301.2,0.0384256]
[1726446915556,0.10864171,2301.6,2301.2,0.0384256]
[1726446916411,11.00994,2301.3,2301.2,0.0384256]
[1726446916611,2.3192,2301.3,2301.2,0.0384256]
[1726446916813,9.12280785,2301.9,2301.2,0.0384256]
[1726446916814,2.3192,2301.6,2301.2,0.0384256]
[1726446917038,2.3192,2301.6,2301.3,4.34534]
[1726446917238,0.10862564,2301.8,2301.3,4.34534]
[1726446917514,0.10862564,2301.8,2301.2,0.0384256]
[1726446917665,2.3804,2301.5,2301.2,0.0384256]
[1726446917834,0.1086445,2301.4,2301.2,0.0384256]
[1726446918224,0.10864445,2301.8,2301.2,0.0384256]
[1726446918427,2.3804,2301.9,2301.2,0.56373112]
[1726446918753,2.48902995,2301.9,2301.5,4.34497]
[1726446918951,2.48902995,2301.9,2301.6,4.34465]
[1726446918952,2.3804,2301.9,2301.6,4.34465]
[1726446919136,2.3804,2301.9,2301.5,4.34497]
[1726446919334,2.3804,2302.3,2301.6,0.08689402]
[1726446919668,4.34392,2302.1,2301.3,4.34523]
[1726446919983,5.12464679,2302.2,2301.5,4.34485]
[1726446920266,4.34426,2301.9,2301.3,4.34522]
[1726446920648,4.34483,2301.6,2301.2,0.0384256]
[1726446920835,0.10863825,2301.6,2301.2,0.0384256]
[1726446921039,2.3804,2301.7,2301.2,0.0384256]
[1726446921275,12.58447914,2302.5,2301.2,0.0384256]
[1726446921276,2.3804,2302.1,2301.7,4.34458]
[1726446921438,4.34342,2302.4,2301.7,4.34454]
[1726446921651,4.45201666,2302.4,2301.6,4.34476]
[1726446921870,4.3437,2302.2,2301.6,4.34476]
[1726446922165,5.21447914,2302.0,2301.2,0.0384256]
[1726446922371,0.68324167,2302.3,2301.2,0.0384256]
[1726446922372,4.34463,2301.7,2301.2,0.0384256]
[1726446922577,0.10864368,2301.6,2301.2,0.0384256]
[1726446923125,4.345,2301.5,2301.2,0.0384256]
[1726446923320,0.10864368,2301.6,2301.2,0.0384256]
[1726446923773,4.34483,2301.6,2301.2,0.0384256]
[1726446923926,4.34537,2301.3,2301.2,0.0384256]
[1726446924128,4.45403068,2301.3,2301.2,0.0384256]
[1726446924331,8.79940068,2301.3,2301.2,0.0384256]
[1726446925467,13.14477068,2301.3,2301.2,0.0384256]
[1726446925682,11.27410068,2301.3,2301.2,0.0384256]
[1726446925829,11.01386,2301.0,2300.9,0.08840292]
[1726446926232,11.01386,2301.0,2299.5,0.0118843]
[1726446926233,13.04574,2299.6,2299.5,0.0118843]
[1726446926428,11.69716,2299.6,2299.5,0.0118843]
[1726446926668,4.34858,2299.6,2299.5,0.0118843]
[1726446926836,11.70866,2299.6,2299.5,0.0118843]